fUST/lending_fUST_20251001
["ID","MTS","AMOUNT","RATE_DAILY","PERIOD"]
[388710116,1759327855567,-597.1,0.00021095,2]
[388710117,1759327855576,-507.97,0.00021095,2]
[388710118,1759327855585,-500.0,0.00021095,2]
[388710119,1759327855594,-582.59467345,0.00021095,2]
[388710120,1759327855603,-585.59,0.00021095,2]
[388710121,1759327855614,-554.95,0.00021095,2]
[388710122,1759327855623,-207.42402711,0.00021095,2]
[388710123,1759327855633,-500.0,0.00021095,2]
[388710124,1759327855643,-500.0,0.00021095,2]
[388710125,1759327855652,-500.0,0.00021095,2]
[388710126,1759327855662,-561.22,0.00021095,2]
[388710127,1759327855671,-500.0,0.00021095,2]
[388710128,1759327855680,-670.65,0.00021095,2]
[388710129,1759327855690,-500.0,0.00021095,2]
[388710130,1759327855700,-500.0,0.00021095,2]
[388710131,1759327855710,-500.0,0.00021095,2]
[388710132,1759327855719,-500.0,0.00021095,2]
[388710133,1759327855728,-500.0,0.00021095,2]
[388710134,1759327855738,-752.97,0.00021095,2]
[388710135,1759327855747,-536.7,0.00021095,2]
[388710136,1759327855757,-299.52555601,0.00021095,2]
[388710137,1759327855771,-500.0,0.00021095,2]
[388710138,1759327855780,-531.08,0.00021095,2]
[388710139,1759327855789,-1044.52,0.00021095,2]
[388710140,1759327855799,-500.0,0.00021095,2]
[388710141,1759327855809,-500.0,0.00021095,2]
[388710142,1759327855818,-500.0,0.00021095,2]
[388710143,1759327855827,-500.0,0.00021095,2]
[388710144,1759327855838,-500.0,0.00021095,2]
[388710145,1759327855847,-553.59,0.00021095,2]
[388710146,1759327855857,-500.0,0.00021095,2]
[388710147,1759327855867,-1415.31,0.00021095,2]
[388710148,1759327855876,-500.0,0.00021095,2]
[388710149,1759327855885,-500.0,0.00021095,2]
[388710150,1759327855894,-534.93,0.00021095,2]
[388710151,1759327855904,-594.58,0.00021095,2]
[388710152,1759327855913,-237.71171012,0.00021095,2]
[388710153,1759327855922,-500.0,0.00021095,2]
[388710154,1759327855931,-598.62,0.00021095,2]
[388710155,1759327855941,-500.0,0.00021095,2]
[388710156,1759327855950,-500.0,0.00021095,2]
[388710157,1759327855960,-583.19,0.00021095,2]
[388710158,1759327855969,-1396.49,0.00021095,2]
[388710159,1759327855978,-585.06,0.00021095,2]
[388710160,1759327855987,-500.0,0.00021095,2]
[388710161,1759327855996,-500.0,0.00021095,2]
[388710162,1759327856006,-626.73,0.00021095,2]
[388710163,1759327856015,-500.0,0.00021095,2]
[388710164,1759327856024,-500.0,0.00021095,2]
[388710165,1759327856033,-654.19,0.00021095,2]
[388710166,1759327856043,-275.43671965,0.00021095,2]
[388710167,1759327856052,-500.0,0.00021095,2]
[388710168,1759327856061,-990.91,0.00021095,2]
[388710169,1759327856070,-500.0,0.00021095,2]
[388710170,1759327856079,-871.03,0.00021095,2]
[388710171,1759327856088,-680.72,0.00021095,2]
[388710172,1759327856097,-500.0,0.00021095,2]
[388710173,1759327856218,-1061.8,0.00021095,2]
[388710174,1759327856229,-500.0,0.00021095,2]
[388710175,1759327856239,-500.0,0.00021095,2]
[388710176,1759327856250,-185.10331798,0.00021096,2]
[388710177,1759327856261,-800.0,0.00021108,2]
[388710178,1759327856270,-1500.0,0.00021116,2]
[388710179,1759327856279,-1000.0,0.00021116,2]
[388710180,1759327856288,-1000.0,0.00021116,2]
[388710181,1759327856297,-1000.0,0.00021116,2]
[388710182,1759327856307,-1500.0,0.00021116,2]
[388710183,1759327856316,-2000.0,0.00021116,2]
[388710184,1759327856325,-2000.0,0.00021116,2]
[388710185,1759327856334,-500.0,0.00021116,2]
[388710186,1759327856343,-381.28070971,0.0002112,2]
[388710187,1759327856352,-1423.99217446,0.00021164,2]
[388710188,1759327856361,-979.0,0.00021197,2]
[388710189,1759327856370,-630.0,0.00021197,2]
[388710190,1759327856379,-2156.0,0.00021197,2]
[388710191,1759327856388,-2924.0,0.00021199,2]
[388710192,1759327856397,-410.0,0.00021199,2]
[388710193,1759327856406,-428.711,0.00021199,2]
[388710194,1759327856415,-501.30909708,0.00021238,2]
[388710195,1759327856425,-500.0,0.00021238,2]
[388710196,1759327856434,-553.47499876,0.00021238,2]
[388710197,1759327856445,-500.0,0.00021238,2]
[388710198,1759327856454,-150.0,0.00021271,2]
[388710199,1759327856463,-150.0,0.00021271,2]
[388710200,1759327856472,-150.0,0.00021271,2]
[388710201,1759327856481,-150.0,0.00021271,2]
[388710202,1759327856490,-150.0,0.00021271,2]
[388710203,1759327856499,-3000.0,0.000213,2]
[388710204,1759327856508,-4169.13349798,0.000213,2]
[388710205,1759327856517,-3000.0,0.0002131,2]
[388710206,1759327856526,-3000.0,0.0002132,2]
[388710207,1759327856535,-3000.0,0.0002133,2]
[388710208,1759327856544,-3000.0,0.0002134,2]
[388710209,1759327856554,-250.0,0.00021342,2]
[388710210,1759327856563,-3000.0,0.0002135,2]
[388710211,1759327856572,-3000.0,0.0002136,2]
[388710212,1759327856582,-500.0,0.00021369,2]
[388710213,1759327856591,-533.09,0.00021369,2]
[388710214,1759327856600,-510.88,0.00021369,2]
[388710215,1759327856609,-500.0,0.00021369,2]
[388710216,1759327856618,-500.0,0.00021369,2]
[388710217,1759327856627,-500.0,0.00021369,2]
[388710218,1759327856636,-500.0,0.00021369,2]
[388710219,1759327856646,-500.0,0.00021369,2]
[388710220,1759327856655,-851.78,0.00021369,2]
[388710221,1759327856664,-500.0,0.00021369,2]
[388710222,1759327856674,-500.0,0.00021369,2]
[388710223,1759327856682,-500.0,0.00021369,2]
[388710224,1759327856692,-500.0,0.00021369,2]
[388710225,1759327856701,-500.0,0.00021369,2]
[388710226,1759327856711,-500.0,0.00021369,2]
[388710227,1759327856720,-637.14,0.00021369,2]
[388710228,1759327856728,-2188.24,0.00021369,2]
[388710229,1759327856737,-500.0,0.00021369,2]
[388710230,1759327856746,-500.0,0.00021369,2]
[388710231,1759327856755,-500.0,0.00021369,2]
[388710232,1759327856766,-500.0,0.00021369,2]
[388710233,1759327856776,-500.0,0.00021369,2]
[388710234,1759327856786,-500.0,0.00021369,2]
[388710235,1759327856795,-672.61,0.00021369,2]
[388710236,1759327856806,-1419.91,0.00021369,2]
[388710237,1759327856815,-416.71433523,0.00021369,2]
[388710238,1759327856824,-219.49152873,0.00021369,2]
[388710239,1759327856833,-500.0,0.00021369,2]
[388710240,1759327856845,-500.0,0.00021369,2]
[388710241,1759327856855,-610.2706606,0.00021369,2]
[388710242,1759327856864,-500.0,0.00021369,2]
[388710243,1759327856874,-500.0,0.00021369,2]
[388710244,1759327856884,-775.27730223,0.00021369,2]
[388710245,1759327856893,-3098.00809973,0.00021369,2]
[388710246,1759327856902,-907.68,0.00021369,2]
[388710247,1759327856911,-500.0,0.00021369,2]
[388710248,1759327856920,-500.0,0.00021369,2]
[388710249,1759327856930,-636.72233397,0.00021369,2]
[388710250,1759327856939,-2893.3,0.00021369,2]
[388710251,1759327856949,-500.0,0.00021369,2]
[388710252,1759327856958,-574.35,0.00021369,2]
[388710253,1759327856967,-515.32205522,0.00021369,2]
[388710254,1759327856977,-500.0,0.00021369,2]
[388710255,1759327856987,-589.13,0.00021369,2]
[388710256,1759327856997,-2362.01,0.00021369,2]
[388710257,1759327857006,-500.0,0.00021369,2]
[388710258,1759327857016,-500.0,0.00021369,2]
[388710259,1759327857025,-1540.14,0.00021369,2]
[388710260,1759327857035,-500.0,0.00021369,2]
[388710261,1759327857044,-500.0,0.00021369,2]
[388710262,1759327857053,-500.0,0.00021369,2]
[388710263,1759327857063,-3702.8,0.00021369,2]
[388710264,1759327857072,-500.0,0.00021369,2]
[388710265,1759327857081,-500.0,0.00021369,2]
[388710266,1759327857091,-500.0,0.00021369,2]
[388710267,1759327857100,-597.1,0.00021369,2]
[388710268,1759327857109,-507.97,0.00021369,2]
[388710269,1759327857119,-500.0,0.00021369,2]
[388710270,1759327857129,-585.59,0.00021369,2]
[388710271,1759327857138,-554.95,0.00021369,2]
[388710272,1759327857148,-500.0,0.00021369,2]
[388710273,1759327857157,-500.0,0.00021369,2]
[388710274,1759327857167,-500.0,0.00021369,2]
[388710275,1759327857176,-561.22,0.00021369,2]
[388710276,1759327857185,-500.0,0.00021369,2]
[388710277,1759327857196,-670.65,0.00021369,2]
[388710278,1759327857205,-500.0,0.00021369,2]
[388710279,1759327857215,-500.0,0.00021369,2]
[388710280,1759327857224,-500.0,0.00021369,2]
[388710281,1759327857235,-500.0,0.00021369,2]
[388710282,1759327857244,-500.0,0.00021369,2]
[388710283,1759327857253,-752.97,0.00021369,2]
[388710284,1759327857263,-536.7,0.00021369,2]
[388710285,1759327857272,-500.0,0.00021369,2]
[388710286,1759327857281,-531.08,0.00021369,2]
[388710287,1759327857290,-1044.52,0.00021369,2]
[388710288,1759327857299,-500.0,0.00021369,2]
[388710289,1759327857308,-500.0,0.00021369,2]
[388710290,1759327857317,-500.0,0.00021369,2]
[388710291,1759327857326,-500.0,0.00021369,2]
[388710292,1759327857336,-500.0,0.00021369,2]
[388710293,1759327857345,-553.59,0.00021369,2]
[388710294,1759327857355,-500.0,0.00021369,2]
[388710295,1759327857365,-1415.31,0.00021369,2]
[388710296,1759327857375,-500.0,0.00021369,2]
[388710297,1759327857384,-500.0,0.00021369,2]
[388710298,1759327857395,-534.93,0.00021369,2]
[388710299,1759327857404,-594.58,0.00021369,2]
[388710300,1759327857415,-500.0,0.00021369,2]
[388710301,1759327857424,-598.62,0.00021369,2]
[388710302,1759327857434,-500.0,0.00021369,2]
[388710303,1759327857444,-500.0,0.00021369,2]
[388710304,1759327857453,-583.19,0.00021369,2]
[388710305,1759327857462,-1396.49,0.00021369,2]
[388710306,1759327857471,-585.06,0.00021369,2]
[388710307,1759327857481,-500.0,0.00021369,2]
[388710308,1759327857490,-500.0,0.00021369,2]
[388710309,1759327857500,-626.73,0.00021369,2]
[388710310,1759327857510,-500.0,0.00021369,2]
[388710311,1759327857519,-500.0,0.00021369,2]
[388710312,1759327857529,-654.19,0.00021369,2]
[388710313,1759327857538,-500.0,0.00021369,2]
[388710314,1759327857547,-990.91,0.00021369,2]
[388710315,1759327857557,-500.0,0.00021369,2]
[388710316,1759327857566,-871.03,0.00021369,2]
[388710317,1759327857575,-680.72,0.00021369,2]
[388710318,1759327857584,-500.0,0.00021369,2]
[388710319,1759327857594,-1061.8,0.00021369,2]
[388710320,1759327857604,-500.0,0.00021369,2]
[388710321,1759327857614,-500.0,0.00021369,2]
[388710322,1759327857623,-3000.0,0.0002137,2]
[388710323,1759327857632,-3000.0,0.0002138,2]
[388710324,1759327857641,-260.0,0.00021388,2]
[388710325,1759327857650,-3000.0,0.0002139,2]
[388710326,1759327857659,-151.0,0.000214,3]
[388710327,1759327857668,-3372.109726,0.000214,2]
[388710328,1759327857678,-1185.1413291,0.00021464,2]
[388710329,1759327857689,-5535.0,0.000215,2]
[388710330,1759327857698,-100000.0,0.000215,28]
[388710331,1759327857707,-561.17950999,0.00021527,2]
[388710332,1759327857716,-910.98424207,0.00021527,2]
[388710333,1759327857726,-12707.11664064,0.00021543,2]
[388710334,1759327857735,-166.0,0.00021601,2]
[388710335,1759327857744,-2000.0,0.00021616,2]
[388710336,1759327857753,-500.0,0.00021643,2]
[388710337,1759327857766,-533.09,0.00021643,2]
[388710338,1759327857776,-510.88,0.00021643,2]
[388710339,1759327857785,-500.0,0.00021643,2]
[388710340,1759327857795,-451.37891418,0.00021643,2]
[388710341,1759327857806,-500.0,0.00021643,2]
[388710342,1759327857816,-265.41184613,0.00021643,2]
[388710343,1759327857825,-500.0,0.00021643,2]
[388710344,1759327857834,-851.78,0.00021643,2]
[388710345,1759327857845,-500.0,0.00021643,2]
[388710346,1759327857854,-500.0,0.00021643,2]
[388710347,1759327857863,-500.0,0.00021643,2]
[388710348,1759327857873,-500.0,0.00021643,2]
[388710349,1759327857883,-500.0,0.00021643,2]
[388710350,1759327857892,-540.26307987,0.00021643,2]
[388710351,1759327857901,-637.14,0.00021643,2]
[388710352,1759327857911,-2188.24,0.00021643,2]
[388710353,1759327857920,-500.0,0.00021643,2]
[388710354,1759327857929,-500.0,0.00021643,2]
[388710355,1759327857939,-500.0,0.00021643,2]
[388710356,1759327857948,-500.0,0.00021643,2]
[388710357,1759327857957,-500.0,0.00021643,2]
[388710358,1759327857966,-443.69303668,0.00021643,2]
[388710359,1759327857975,-672.61,0.00021643,2]
[388710360,1759327857984,-1419.91,0.00021643,2]
[388710361,1759327857993,-500.0,0.00021643,2]
[388710362,1759327858003,-500.0,0.00021643,2]
[388710363,1759327858012,-500.0,0.00021643,2]
[388710364,1759327858022,-292.22998064,0.00021643,2]
[388710365,1759327858031,-907.68,0.00021643,2]
[388710366,1759327858041,-571.31029908,0.00021643,2]
[388710367,1759327858051,-500.0,0.00021643,2]
[388710368,1759327858060,-2893.3,0.00021643,2]
[388710369,1759327858070,-500.0,0.00021643,2]
[388710370,1759327858079,-574.35,0.00021643,2]
[388710371,1759327858088,-500.0,0.00021643,2]
[388710372,1759327858097,-2362.01,0.00021643,2]
[388710373,1759327858106,-500.0,0.00021643,2]
[388710374,1759327858115,-500.0,0.00021643,2]
[388710375,1759327858124,-1540.14,0.00021643,2]
[388710376,1759327858134,-500.0,0.00021643,2]
[388710377,1759327858143,-500.0,0.00021643,2]
[388710378,1759327858153,-500.0,0.00021643,2]
[388710379,1759327858162,-3702.8,0.00021643,2]
[388710380,1759327858171,-255.7,0.00021643,2]
[388710381,1759327858180,-500.0,0.00021643,2]
[388710382,1759327858191,-500.0,0.00021643,2]
[388710383,1759327858200,-507.97,0.00021643,2]
[388710384,1759327858210,-597.1,0.00021643,2]
[388710385,1759327858220,-500.0,0.00021643,2]
[388710386,1759327858230,-585.59,0.00021643,2]
[388710387,1759327858239,-554.95,0.00021643,2]
[388710388,1759327858248,-500.0,0.00021643,2]
[388710389,1759327858258,-500.0,0.00021643,2]
[388710390,1759327858268,-500.0,0.00021643,2]
[388710391,1759327858278,-561.22,0.00021643,2]
[388710392,1759327858288,-500.0,0.00021643,2]
[388710393,1759327858297,-670.65,0.00021643,2]
[388710394,1759327858306,-168.57960243,0.00021643,2]
[388710395,1759327858315,-500.0,0.00021643,2]
[388710396,1759327858324,-500.0,0.00021643,2]
[388710397,1759327858334,-500.0,0.00021643,2]
[388710398,1759327858344,-500.0,0.00021643,2]
[388710399,1759327858353,-752.97,0.00021643,2]
[388710400,1759327858362,-536.7,0.00021643,2]
[388710401,1759327858372,-500.0,0.00021643,2]
[388710402,1759327858381,-531.08,0.00021643,2]
[388710403,1759327858390,-1044.52,0.00021643,2]
[388710404,1759327858399,-500.0,0.00021643,2]
[388710405,1759327858408,-500.0,0.00021643,2]
[388710406,1759327858417,-500.0,0.00021643,2]
[388710407,1759327858427,-500.0,0.00021643,2]
[388710408,1759327858436,-568.6254831,0.00021643,2]
[388710409,1759327858446,-553.59,0.00021643,2]
[388710410,1759327858456,-500.0,0.00021643,2]
[388710411,1759327858466,-1415.31,0.00021643,2]
[388710412,1759327858476,-500.0,0.00021643,2]
[388710413,1759327858485,-500.0,0.00021643,2]
[388710414,1759327858495,-534.93,0.00021643,2]
[388710415,1759327858504,-594.58,0.00021643,2]
[388710416,1759327858513,-500.0,0.00021643,2]
[388710417,1759327858521,-598.62,0.00021643,2]
[388710418,1759327858530,-500.0,0.00021643,2]
[388710419,1759327858539,-179.72601027,0.00021643,2]
[388710420,1759327858548,-583.19,0.00021643,2]
[388710421,1759327858557,-1396.49,0.00021643,2]
[388710422,1759327858566,-585.06,0.00021643,2]
[388710423,1759327858574,-500.0,0.00021643,2]
[388710424,1759327858583,-500.0,0.00021643,2]
[388710425,1759327858592,-626.73,0.00021643,2]
[388710426,1759327858601,-500.0,0.00021643,2]
[388710427,1759327858610,-500.0,0.00021643,2]
[388710428,1759327858618,-654.19,0.00021643,2]
[388710429,1759327858628,-500.0,0.00021643,2]
[388710430,1759327858636,-990.91,0.00021643,2]
[388710431,1759327858645,-500.0,0.00021643,2]
[388710432,1759327858654,-871.03,0.00021643,2]
[388710433,1759327858663,-680.72,0.00021643,2]
[388710434,1759327858672,-500.0,0.00021643,2]
[388710435,1759327858680,-1061.8,0.00021643,2]
[388710436,1759327858690,-500.0,0.00021643,2]
[388710437,1759327858699,-500.0,0.00021643,2]
[388710438,1759327858708,-153.677314,0.00021644,2]
[388710439,1759327858717,-1000.0,0.00021664,2]
[388710440,1759327858726,-151.0,0.000217,4]
[388710441,1759327858735,-1380.0,0.000218,4]
[388710442,1759327858743,-500.0,0.00021917,2]
[388710443,1759327858752,-533.09,0.00021917,2]
[388710444,1759327858764,-510.88,0.00021917,2]
[388710445,1759327858775,-500.0,0.00021917,2]
[388710446,1759327858783,-500.0,0.00021917,2]
[388710447,1759327858792,-500.0,0.00021917,2]
[388710448,1759327858801,-851.78,0.00021917,2]
[388710449,1759327858811,-500.0,0.00021917,2]
[388710450,1759327858819,-500.0,0.00021917,2]
[388710451,1759327858828,-177.90802113,0.00021917,2]
[388710452,1759327858837,-500.0,0.00021917,2]
[388710453,1759327858848,-500.0,0.00021917,2]
[388710454,1759327858857,-637.14,0.00021917,2]
[388710455,1759327858865,-2188.24,0.00021917,2]
[388710456,1759327858978,-500.0,0.00021917,2]
[388710457,1759327858987,-500.0,0.00021917,2]
[388710458,1759327858996,-588.81561006,0.00021917,2]
[388710459,1759327859006,-501.66,0.00021917,2]
[388710460,1759327859017,-500.0,0.00021917,2]
[388710461,1759327859026,-672.61,0.00021917,2]
[388710462,1759327859035,-1419.91,0.00021917,2]
[388710463,1759327859044,-500.0,0.00021917,2]
[388710464,1759327859053,-500.0,0.00021917,2]
[388710465,1759327859062,-500.0,0.00021917,2]
[388710466,1759327859071,-480.0,0.00021917,2]
[388710467,1759327859079,-907.68,0.00021917,2]
[388710468,1759327859088,-500.0,0.00021917,2]
[388710469,1759327859097,-2893.3,0.00021917,2]
[388710470,1759327859106,-500.0,0.00021917,2]
[388710471,1759327859116,-574.35,0.00021917,2]
[388710472,1759327859125,-500.0,0.00021917,2]
[388710473,1759327859134,-2362.01,0.00021917,2]
[388710474,1759327859143,-500.0,0.00021917,2]
[388710475,1759327859153,-268.43,0.00021917,2]
[388710476,1759327859162,-1540.14,0.00021917,2]
[388710477,1759327859171,-214.75118177,0.00021917,2]
[388710478,1759327859180,-500.0,0.00021917,2]
[388710479,1759327859189,-500.0,0.00021917,2]
[388710480,1759327859198,-3702.8,0.00021917,2]
[388710481,1759327859207,-500.0,0.00021917,2]
[388710482,1759327859216,-500.0,0.00021917,2]
[388710483,1759327859224,-507.97,0.00021917,2]
[388710484,1759327859233,-597.1,0.00021917,2]
[388710485,1759327859242,-500.0,0.00021917,2]
[388710486,1759327859251,-585.59,0.00021917,2]
[388710487,1759327859260,-554.95,0.00021917,2]
[388710488,1759327859269,-500.0,0.00021917,2]
[388710489,1759327859278,-500.0,0.00021917,2]
[388710490,1759327859287,-500.0,0.00021917,2]
[388710491,1759327859295,-561.22,0.00021917,2]
[388710492,1759327859304,-500.0,0.00021917,2]
[388710493,1759327859313,-670.65,0.00021917,2]
[388710494,1759327859322,-500.0,0.00021917,2]
[388710495,1759327859331,-500.0,0.00021917,2]
[388710496,1759327859340,-500.0,0.00021917,2]
[388710497,1759327859349,-500.0,0.00021917,2]
[388710498,1759327859359,-752.97,0.00021917,2]
[388710499,1759327859367,-536.7,0.00021917,2]
[388710500,1759327859376,-500.0,0.00021917,2]
[388710501,1759327859385,-531.08,0.00021917,2]
[388710502,1759327859394,-1044.52,0.00021917,2]
[388710503,1759327859403,-500.0,0.00021917,2]
[388710504,1759327859411,-500.0,0.00021917,2]
[388710505,1759327859421,-500.0,0.00021917,2]
[388710506,1759327859431,-500.0,0.00021917,2]
[388710507,1759327859439,-500.0,0.00021917,2]
[388710508,1759327859450,-553.59,0.00021917,2]
[388710509,1759327859458,-1415.31,0.00021917,2]
[388710510,1759327859467,-500.0,0.00021917,2]
[388710511,1759327859477,-500.0,0.00021917,2]
[388710512,1759327859486,-534.93,0.00021917,2]
[388710513,1759327859495,-594.58,0.00021917,2]
[388710514,1759327859504,-500.0,0.00021917,2]
[388710515,1759327859514,-598.62,0.00021917,2]
[388710516,1759327859523,-500.0,0.00021917,2]
[388710517,1759327859532,-583.19,0.00021917,2]
[388710518,1759327859541,-1396.49,0.00021917,2]
[388710519,1759327859551,-585.06,0.00021917,2]
[388710520,1759327859560,-425.69170604,0.00021917,2]
[388710521,1759327859569,-500.0,0.00021917,2]
[388710522,1759327859578,-626.73,0.00021917,2]
[388710523,1759327859587,-500.0,0.00021917,2]
[388710524,1759327859597,-500.0,0.00021917,2]
[388710525,1759327859606,-654.19,0.00021917,2]
[388710526,1759327859615,-500.0,0.00021917,2]
[388710527,1759327859625,-990.91,0.00021917,2]
[388710528,1759327859635,-500.0,0.00021917,2]
[388710529,1759327859644,-871.03,0.00021917,2]
[388710530,1759327859653,-680.72,0.00021917,2]
[388710531,1759327859662,-500.0,0.00021917,2]
[388710532,1759327859672,-1061.8,0.00021917,2]
[388710533,1759327859681,-500.0,0.00021917,2]
[388710534,1759327859690,-500.0,0.00021917,2]
[388710535,1759327859701,-223.1397124,0.00021918,2]
[388710536,1759327859710,-400.0,0.00021918,2]
[388710537,1759327859719,-360.0,0.00021936,2]
[388710538,1759327859728,-199.999999,0.00022,2]
[388710539,1759327859738,-6299.01,0.00022,2]
[388710540,1759327859747,-100093.92457755,0.00022,5]
[388710541,1759327859757,-4000.0,0.00022,4]
[388710542,1759327859769,-250.0,0.00022123,2]
[388710543,1759327859779,-166.0,0.00022149,2]
[388710544,1759327859788,-2500.0,0.00022164,2]
[388710545,1759327859798,-160.0,0.00022167,2]
[388710546,1759327859810,-160.0,0.00022167,2]
[388710547,1759327859819,-160.0,0.00022167,2]
[388710548,1759327859829,-160.0,0.00022167,2]
[388710549,1759327859838,-500.0,0.00022191,5]
[388710550,1759327859850,-533.09,0.00022191,2]
[388710551,1759327859860,-500.0,0.00022191,2]
[388710552,1759327859869,-500.0,0.00022191,2]
[388710553,1759327859879,-339.4,0.00022191,2]
[388710554,1759327859888,-851.78,0.00022191,2]
[388710555,1759327859897,-500.0,0.00022191,2]
[388710556,1759327859906,-500.0,0.00022191,2]
[388710557,1759327859916,-290.01995297,0.00022191,2]
[388710558,1759327859925,-289.73575535,0.00022191,2]
[388710559,1759327859935,-637.14,0.00022191,2]
[388710560,1759327859945,-2188.24,0.00022191,2]
[388710561,1759327859954,-500.0,0.00022191,2]
[388710562,1759327859963,-500.0,0.00022191,2]
[388710563,1759327859973,-500.0,0.00022191,2]
[388710564,1759327859982,-672.61,0.00022191,2]
[388710565,1759327859992,-1419.91,0.00022191,2]
[388710566,1759327860001,-500.0,0.00022191,2]
[388710567,1759327860011,-500.0,0.00022191,2]
[388710568,1759327860020,-500.0,0.00022191,2]
[388710569,1759327860030,-907.68,0.00022191,2]
[388710570,1759327860039,-500.0,0.00022191,2]
[388710571,1759327860050,-2893.3,0.00022191,2]
[388710572,1759327860061,-207.79882807,0.00022191,2]
[388710573,1759327860071,-574.35,0.00022191,2]
[388710574,1759327860080,-622.48,0.00022191,2]
[388710575,1759327860090,-2362.01,0.00022191,2]
[388710576,1759327860099,-213.18785818,0.00022191,2]
[388710577,1759327860109,-1540.14,0.00022191,2]
[388710578,1759327860118,-500.0,0.00022191,2]
[388710579,1759327860127,-500.0,0.00022191,2]
[388710580,1759327860136,-3702.8,0.00022191,2]
[388710581,1759327860146,-500.0,0.00022191,2]
[388710582,1759327860155,-500.0,0.00022191,2]
[388710583,1759327860165,-507.97,0.00022191,2]
[388710584,1759327860175,-597.1,0.00022191,2]
[388710585,1759327860184,-500.0,0.00022191,2]
[388710586,1759327860194,-585.59,0.00022191,2]
[388710587,1759327860204,-554.95,0.00022191,2]
[388710588,1759327860214,-500.0,0.00022191,2]
[388710589,1759327860223,-500.0,0.00022191,2]
[388710590,1759327860234,-500.0,0.00022191,2]
[388710591,1759327860245,-561.22,0.00022191,2]
[388710592,1759327860254,-500.0,0.00022191,2]
[388710593,1759327860265,-670.65,0.00022191,2]
[388710594,1759327860275,-500.0,0.00022191,2]
[388710595,1759327860285,-500.0,0.00022191,2]
[388710596,1759327860294,-500.0,0.00022191,2]
[388710597,1759327860304,-500.0,0.00022191,2]
[388710598,1759327860314,-752.97,0.00022191,2]
[388710599,1759327860323,-536.7,0.00022191,2]
[388710600,1759327860331,-500.0,0.00022191,2]
[388710601,1759327860342,-531.08,0.00022191,2]
[388710602,1759327860351,-1044.52,0.00022191,2]
[388710603,1759327860360,-500.0,0.00022191,2]
[388710604,1759327860370,-500.0,0.00022191,2]
[388710605,1759327860380,-319.82968598,0.00022191,2]
[388710606,1759327860389,-186.42684209,0.00022191,2]
[388710607,1759327860399,-500.0,0.00022191,2]
[388710608,1759327860408,-553.59,0.00022191,2]
[388710609,1759327860417,-1415.31,0.00022191,2]
[388710610,1759327860427,-500.0,0.00022191,2]
[388710611,1759327860436,-500.0,0.00022191,2]
[388710612,1759327860446,-534.93,0.00022191,2]
[388710613,1759327860455,-594.58,0.00022191,2]
[388710614,1759327860464,-500.0,0.00022191,2]
[388710615,1759327860473,-598.62,0.00022191,2]